fUSD/lending_fUSD_20260528
["ID","MTS","AMOUNT","RATE_DAILY","PERIOD"]
[423243845,1779981038000,-2000.0,0.00014746,2]
[423243822,1779981038000,-500.0,0.00014624,2]
[423243823,1779981038000,-500.0,0.00014624,2]
[423243826,1779981038000,-150.0,0.00014624,2]
[423243816,1779981038000,-71416.596946,0.00014587,2]
[423243812,1779981038000,-1880.13488582,0.00013667,2]
[423243814,1779981038000,-7340.71344362,0.00013667,2]
[423243813,1779981038000,-25548.38353755,0.00013667,2]
[423243827,1779981038000,-200.0,0.00014624,2]
[423243847,1779981038000,-201.0,0.000148,2]
[423243879,1779981038000,-500.0,0.00014898,2]
[423243853,1779981038000,-500.0,0.00014898,2]
[423243849,1779981038000,-500.0,0.00014898,2]
[423243881,1779981038000,-500.0,0.00014898,2]
[423243882,1779981038000,-500.0,0.00014898,2]
[423243883,1779981038000,-500.0,0.00014898,2]
[423243885,1779981038000,-536.57,0.00014898,2]
[423243886,1779981038000,-495.27515219,0.00014898,2]
[423243877,1779981038000,-500.0,0.00014898,2]
[423243884,1779981038000,-500.0,0.00014898,2]
[423243880,1779981038000,-500.0,0.00014898,2]
[423243878,1779981038000,-500.0,0.00014898,2]
[423243866,1779981038000,-500.0,0.00014898,2]
[423243872,1779981038000,-502.71616997,0.00014898,2]
[423243868,1779981038000,-500.0,0.00014898,2]
[423243873,1779981038000,-500.0,0.00014898,2]
[423243874,1779981038000,-500.0,0.00014898,2]
[423243875,1779981038000,-500.0,0.00014898,2]
[423243860,1779981038000,-500.0,0.00014898,2]
[423243864,1779981038000,-500.0,0.00014898,2]
[423243865,1779981038000,-500.0,0.00014898,2]
[423243869,1779981038000,-500.0,0.00014898,2]
[423243876,1779981038000,-500.0,0.00014898,2]
[423243867,1779981038000,-500.0,0.00014898,2]
[423243871,1779981038000,-500.0,0.00014898,2]
[423243863,1779981038000,-500.0,0.00014898,2]
[423243870,1779981038000,-500.0,0.00014898,2]
[423243862,1779981038000,-500.0,0.00014898,2]
[423243861,1779981038000,-500.0,0.00014898,2]
[423243851,1779981038000,-500.0,0.00014898,2]
[423243859,1779981038000,-500.0,0.00014898,2]
[423243857,1779981038000,-500.0,0.00014898,2]
[423243856,1779981038000,-500.0,0.00014898,2]
[423243951,1779981049000,-500.0,0.00014898,2]
[423243950,1779981049000,-500.0,0.00014898,2]
[423243949,1779981049000,-536.57,0.00014898,2]
[423243954,1779981049000,-200.0,0.00014899,2]
[423243953,1779981049000,-200.0,0.00014899,2]
[423243952,1779981049000,-500.0,0.00014898,2]
[423243948,1779981049000,-41.29484781,0.00014898,2]
[423243979,1779981050000,-800.0,0.000154,2]
[423243987,1779981050000,-800.0,0.000157,2]
[423243988,1779981050000,-800.0,0.000159,2]
[423243986,1779981050000,-215.50460005,0.0001567,2]
[423243981,1779981050000,-182.35,0.0001549,2]
[423243980,1779981050000,-151.15,0.00015422,2]
[423243983,1779981050000,-200.0,0.00015504,2]
[423243985,1779981050000,-4715.0,0.00015623,2]
[423243990,1779981050000,-150.0,0.000159,2]
[423244000,1779981050000,-2728.76695744,0.0001611,15]
[423243989,1779981050000,-154.95623923,0.000159,2]
[423243992,1779981050000,-150.0,0.000159,2]
[423243991,1779981050000,-150.0,0.000159,2]
[423243994,1779981050000,-300.0,0.00016,2]
[423243995,1779981050000,-215.50460005,0.00016,3]
[423243984,1779981050000,-800.0,0.000156,2]
[423243997,1779981050000,-101.81574475,0.00016,2]
[423243998,1779981050000,-227.21135545,0.000161,2]
[423243999,1779981050000,-71.7378998,0.0001611,15]
[423243996,1779981050000,-125.3956107,0.00016,2]
[423244001,1779981050000,-164.32,0.00016118,2]
[423244002,1779981050000,-151.15,0.00016156,2]
[423243993,1779981050000,-800.0,0.00016,2]
[423243982,1779981050000,-200.0,0.00015504,2]
[423243962,1779981050000,-169.43,0.00015038,2]
[423243977,1779981050000,-200.0,0.0001535,2]
[423243961,1779981050000,-169.43,0.00015038,2]
[423243955,1779981050000,-151.55341745,0.00014899,2]
[423243956,1779981050000,-200.0,0.00014899,2]
[423243963,1779981050000,-200.0,0.00015048,2]
[423243958,1779981050000,-85.23745209,0.000149,5]
[423243957,1779981050000,-614.76254791,0.000149,5]
[423243959,1779981050000,-200.0,0.000149,5]
[423243960,1779981050000,-169.43,0.00015038,2]
[423243965,1779981050000,-200.0,0.00015048,2]
[423244005,1779981050000,-3916.37223293,0.000162,2]
[423243978,1779981050000,-200.0,0.0001535,2]
[423243975,1779981050000,-182.63,0.00015309,2]
[423243968,1779981050000,-330.0,0.00015068,3]
[423243964,1779981050000,-200.0,0.00015048,2]
[423243967,1779981050000,-560.74123505,0.00015068,2]
[423243969,1779981050000,-1544.0,0.00015073,2]
[423243972,1779981050000,-200.0,0.00015198,2]
[423243974,1779981050000,-157.53,0.00015304,2]
[423243970,1779981050000,-182.35,0.00015082,2]
[423243971,1779981050000,-200.0,0.00015198,2]
[423243973,1779981050000,-200.0,0.00015198,2]
[423243976,1779981050000,-161.96751492,0.0001535,2]
[423243966,1779981050000,-339.25876495,0.00015068,2]
[423244003,1779981050000,-2351.0,0.00016184,2]
[423244045,1779981050000,-666.0,0.00016438,2]
[423244006,1779981050000,-227.21135545,0.000162,2]
[423244033,1779981050000,-666.0,0.00016438,2]
[423244041,1779981050000,-666.0,0.00016438,2]
[423244042,1779981050000,-666.0,0.00016438,2]
[423244034,1779981050000,-666.0,0.00016438,2]
[423244035,1779981050000,-666.0,0.00016438,2]
[423244036,1779981050000,-666.0,0.00016438,2]
[423244037,1779981050000,-666.0,0.00016438,2]
[423244039,1779981050000,-666.0,0.00016438,2]
[423244040,1779981050000,-666.0,0.00016438,2]
[423244038,1779981050000,-666.0,0.00016438,2]
[423244031,1779981050000,-666.0,0.00016438,2]
[423244044,1779981050000,-666.0,0.00016438,2]
[423244043,1779981050000,-666.0,0.00016438,2]
[423244046,1779981050000,-666.0,0.00016438,2]
[423244049,1779981050000,-666.0,0.00016438,2]
[423244048,1779981050000,-666.0,0.00016438,2]
[423244047,1779981050000,-666.0,0.00016438,2]
[423244050,1779981050000,-666.0,0.00016438,2]
[423244053,1779981050000,-900.0,0.00016438,2]
[423244052,1779981050000,-997.0,0.00016438,2]
[423244051,1779981050000,-676.0,0.00016438,2]
[423244008,1779981050000,-500.0,0.00016299,2]
[423244054,1779981050000,-1590.57,0.00016474,2]
[423244032,1779981050000,-666.0,0.00016438,2]
[423244055,1779981050000,-536.57,0.00016499,2]
[423244027,1779981050000,-2755.5,0.00016438,2]
[423244030,1779981050000,-666.0,0.00016438,2]
[423244004,1779981050000,-1083.62776707,0.000162,2]
[423244009,1779981050000,-500.0,0.00016299,2]
[423244007,1779981050000,-500.0,0.00016299,2]
[423244010,1779981050000,-500.0,0.00016299,2]
[423244011,1779981050000,-440.41641162,0.00016299,2]
[423244014,1779981050000,-74.68237131,0.00016299,2]
[423244013,1779981050000,-500.0,0.00016299,2]
[423244017,1779981050000,-500.0,0.00016299,2]
[423244016,1779981050000,-425.31762869,0.00016299,2]
[423244015,1779981050000,-3496.48000818,0.00014487,2]
[423244012,1779981050000,-59.58358838,0.00016299,2]
[423244018,1779981050000,-500.0,0.00016299,2]
[423244021,1779981050000,-784.0019,0.00016338,2]
[423244020,1779981050000,-821.5452,0.00016338,2]
[423244023,1779981050000,-1455.64,0.00016437,2]
[423244022,1779981050000,-2000.0,0.00016384,2]
[423244024,1779981050000,-500.0,0.00016437,2]
[423244025,1779981050000,-500.0,0.00016437,2]
[423244026,1779981050000,-553.86171489,0.00016438,2]
[423244028,1779981050000,-666.0,0.00016438,2]
[423244029,1779981050000,-666.0,0.00016438,2]
[423244019,1779981050000,-10000.0,0.000163,30]
[423244086,1779981051000,-392.65614802,0.000182,2]
[423244089,1779981051000,-198.7970764,0.000184,2]
[423244083,1779981051000,-6979.17048664,0.00018,2]
[423244085,1779981051000,-2000.0,0.00018023,2]
[423244084,1779981051000,-350.0,0.00018,2]
[423244087,1779981051000,-198.7970764,0.000182,2]
[423244091,1779981051000,-1140.0,0.00018454,2]
[423244081,1779981051000,-19453.19063995,0.00018,2]
[423244082,1779981051000,-974.74442038,0.00018,2]
[423244088,1779981051000,-392.65614802,0.000184,2]
[423244101,1779981051000,-1978.97407399,0.00018999,2]
[423244093,1779981051000,-198.7970764,0.000185,2]
[423244099,1779981051000,-665.35,0.0001872,2]
[423244102,1779981051000,-163.12506766,0.00019,2]
[423244100,1779981051000,-191.99682764,0.00018969,2]
[423244092,1779981051000,-392.65614802,0.000185,2]
[423244103,1779981051000,-215.50460005,0.00019,30]
[423244095,1779981051000,-288.17832007,0.000186,2]
[423244096,1779981051000,-392.65614802,0.000187,2]
[423244080,1779981051000,-274.98204038,0.00013737,2]
[423244094,1779981051000,-500.0,0.00018512,2]
[423244090,1779981051000,-2755.5,0.0001841,2]
[423244078,1779981051000,-198.7970764,0.00018,2]
[423244067,1779981051000,-427.0,0.0001726,2]
[423244077,1779981051000,-392.65614802,0.00018,2]
[423244097,1779981051000,-198.7970764,0.000187,2]
[423244056,1779981051000,-6616.87961098,0.000165,2]
[423244057,1779981051000,-13066.99849394,0.000165,2]
[423244060,1779981051000,-1441.96219184,0.00016755,2]
[423244061,1779981051000,-151.15,0.00016891,2]
[423244063,1779981051000,-3654.0,0.00016987,2]
[423244064,1779981051000,-4125.0,0.00017171,2]
[423244062,1779981051000,-164.77,0.00016985,2]
[423244058,1779981051000,-1000.0,0.000165,2]
[423244059,1779981051000,-168.1,0.00016712,2]
[423244068,1779981051000,-179.92,0.00017325,2]
[423244065,1779981051000,-500.0,0.00017178,2]
[423244070,1779981051000,-151.15,0.00017625,2]
[423244071,1779981051000,-220.270076,0.0001764,2]
[423244069,1779981051000,-157.53,0.00017491,2]
[423244066,1779981051000,-182.63,0.00017222,2]
[423244074,1779981051000,-321.0,0.00017802,2]
[423244073,1779981051000,-228.93,0.00017737,2]
[423244075,1779981051000,-1239.59148304,0.0001789,2]
[423244072,1779981051000,-793.20442286,0.000177,2]
[423244076,1779981051000,-256.0,0.000179,5]
[423244079,1779981051000,-187.26986816,0.00018,2]
[423244098,1779981051000,-11115.86,0.0001872,2]
[423244108,1779981051000,-264.18629754,0.00019178,2]
[423244114,1779981051000,-999.226917,0.00019276,2]
[423244128,1779981051000,-199.29868437,0.0002,2]
[423244138,1779981051000,-2000.0,0.0002,2]
[423244133,1779981051000,-1059.80881447,0.0002,2]
[423244131,1779981051000,-315.12517352,0.0002,2]
[423244135,1779981051000,-2000.0,0.0002,2]
[423244136,1779981051000,-6185.80955307,0.0002,2]
[423244134,1779981051000,-2638.59734204,0.0002,2]
[423244132,1779981051000,-200.0,0.0002,2]
[423244142,1779981051000,-336.0,0.0002,2]
[423244145,1779981051000,-207.0,0.0002,2]
[423244130,1779981051000,-1312.94656269,0.0002,2]
[423244149,1779981051000,-200.0,0.0002,2]
[423244140,1779981051000,-911.0,0.0002,2]
[423244151,1779981051000,-200.0,0.0002,2]
[423244143,1779981051000,-1095.0,0.0002,2]
[423244113,1779981051000,-20428.09,0.00019178,2]
[423244146,1779981051000,-200.0,0.0002,2]
[423244141,1779981051000,-172.37026925,0.0002,2]
[423244144,1779981051000,-156.0,0.0002,2]
[423244148,1779981051000,-200.0,0.0002,2]
[423244152,1779981051000,-200.0,0.0002,2]
[423244153,1779981051000,-200.0,0.0002,2]
[423244147,1779981051000,-200.0,0.0002,2]
[423244139,1779981051000,-151.0,0.0002,2]
[423244150,1779981051000,-200.0,0.0002,2]
[423244137,1779981051000,-400.0,0.0002,2]
[423244129,1779981051000,-10533.5090023,0.0002,2]
[423244115,1779981051000,-254.59138378,0.00019604,2]
[423244104,1779981051000,-1441.96219184,0.00019023,2]
[423244106,1779981051000,-250.0,0.00019178,2]
[423244109,1779981051000,-150.0,0.00019178,2]
[423244112,1779981051000,-210.92564094,0.00019178,2]
[423244107,1779981051000,-250.0,0.00019178,2]
[423244111,1779981051000,-150.0,0.00019178,2]
[423244110,1779981051000,-150.0,0.00019178,2]
[423244117,1779981051000,-157.53,0.00019677,2]
[423244105,1779981051000,-250.0,0.00019178,2]
[423244116,1779981051000,-2000.0,0.00019661,2]
[423244127,1779981051000,-5284.10140603,0.0002,2]
[423244126,1779981051000,-500.0,0.00019999,2]
[423244124,1779981051000,-1455.64,0.00019999,2]
[423244120,1779981051000,-263.41,0.00019844,2]
[423244119,1779981051000,-164.77,0.00019788,2]
[423244125,1779981051000,-500.0,0.00019999,2]
[423244122,1779981051000,-338.18944025,0.00019999,2]
[423244121,1779981051000,-398.26046862,0.00019999,2]
[423244118,1779981051000,-348.1381535,0.0001971,2]
[423244123,1779981051000,-536.57,0.00019999,2]
[423244174,1779981052000,-200.0,0.0002,2]
[423244180,1779981052000,-120.4592222,0.0002,2]
[423244173,1779981052000,-200.0,0.0002,2]
[423244176,1779981052000,-196.84067436,0.0002,2]
[423244177,1779981052000,-3.15932564,0.0002,2]
[423244178,1779981052000,-200.0,0.0002,2]
[423244172,1779981052000,-62.81259564,0.0002,2]
[423244185,1779981052000,-200.0,0.0002,2]
[423244181,1779981052000,-200.0,0.0002,2]
[423244182,1779981052000,-183.29156967,0.0002,2]
[423244183,1779981052000,-3496.48000813,0.0001776,2]
[423244184,1779981052000,-16.70843033,0.0002,2]
[423244197,1779981052000,-1950.0,0.0002,2]
[423244171,1779981052000,-137.18740436,0.0002,2]
[423244187,1779981052000,-200.0,0.0002,2]
[423244179,1779981052000,-79.5407778,0.0002,2]
[423244175,1779981052000,-200.0,0.0002,2]
[423244162,1779981052000,-200.0,0.0002,2]
[423244166,1779981052000,-27.63145897,0.0002,2]
[423244186,1779981052000,-200.0,0.0002,2]
[423244164,1779981052000,-200.0,0.0002,2]
[423244154,1779981052000,-200.0,0.0002,2]
[423244157,1779981052000,-200.0,0.0002,2]
[423244155,1779981052000,-200.0,0.0002,2]
[423244156,1779981052000,-200.0,0.0002,2]
[423244158,1779981052000,-200.0,0.0002,2]
[423244159,1779981052000,-200.0,0.0002,2]
[423244161,1779981052000,-200.0,0.0002,2]
[423244163,1779981052000,-200.0,0.0002,2]
[423244160,1779981052000,-200.0,0.0002,2]
[423244165,1779981052000,-200.0,0.0002,2]
[423244168,1779981052000,-200.0,0.0002,2]
[423244169,1779981052000,-200.0,0.0002,2]
[423244167,1779981052000,-172.36854103,0.0002,2]
[423244170,1779981052000,-200.0,0.0002,2]
[423244188,1779981052000,-200.0,0.0002,2]
[423244198,1779981052000,-1366.81,0.0002,2]
[423244215,1779981052000,-476.77,0.00020782,2]
[423244221,1779981052000,-150.99,0.00020951,2]
[423244210,1779981052000,-476.77,0.00020684,2]
[423244214,1779981052000,-476.8,0.00020766,2]
[423244216,1779981052000,-476.77,0.0002089,2]
[423244213,1779981052000,-476.77,0.00020732,2]
[423244217,1779981052000,-1500.0,0.000209,7]
[423244212,1779981052000,-476.75,0.00020702,2]
[423244218,1779981052000,-400.0,0.000209,7]
[423244219,1779981052000,-476.75,0.00020929,2]
[423244220,1779981052000,-5463.66,0.00020951,2]
[423244223,1779981052000,-704.84,0.00020951,2]
[423244226,1779981052000,-4240.95670425,0.00020951,2]
[423244225,1779981052000,-299.99,0.00020951,7]
[423244222,1779981052000,-3746.6,0.00020951,2]
[423244191,1779981052000,-864.0,0.0002,2]
[423244211,1779981052000,-1230.0,0.00020701,2]
[423244207,1779981052000,-3220.05491932,0.00020548,2]
[423244224,1779981052000,-9999.99,0.00020951,2]
[423244209,1779981052000,-476.77,0.00020639,2]
[423244189,1779981052000,-200.0,0.0002,2]
[423244192,1779981052000,-500.0,0.0002,2]
[423244193,1779981052000,-613.04222186,0.0002,2]
[423244206,1779981052000,-887.03508068,0.00020548,2]
[423244194,1779981052000,-155.0,0.0002,2]
[423244196,1779981052000,-5903.0,0.0002,2]
[423244195,1779981052000,-154.0,0.0002,2]
[423244199,1779981052000,-660.0,0.0002,2]
[423244190,1779981052000,-293.420653,0.0002,2]
[423244202,1779981052000,-2000.0,0.0002002,2]
[423244208,1779981052000,-2850.44,0.00020548,2]
[423244203,1779981052000,-2881.803606,0.0002003,2]
[423244205,1779981052000,-2755.5,0.00020381,2]
[423244200,1779981052000,-2000.0,0.0002001,2]
[423244204,1779981052000,-404.0,0.00020164,2]
[423244201,1779981052000,-1230.0,0.00020016,2]
[423244227,1779981073000,152.0,0.00026448,120]
[423244228,1779981079000,174.4,0.00010826,2]
[423244229,1779981103000,-216.003476,0.00013537,2]
[423244230,1779981156000,-500.0,0.00013375,2]
[423244231,1779981210000,-2690.340671,0.00013232,2]
[423244232,1779981292000,-683.57027379,0.00013198,2]
[423244233,1779981313000,152.0,0.00026476,120]
[423244235,1779981420000,-151.60210175,0.00013198,2]
[423244236,1779981553000,1789.01793326,0.000103,2]
[423244239,1779981661000,-378.89760405,0.000121,30]
[423244240,1779981682000,-650.87102284,0.000121,30]
[423244245,1779981751000,4815.2038447,9.04e-05,2]
[423244248,1779981897000,-311.53507324,0.000125,2]
[423244254,1779982028000,-469.05146846,0.00012724,2]
[423244253,1779982028000,-150.0,0.00012723,2]
[423244252,1779982028000,-300.0,0.00012723,2]
[423244258,1779982202000,150.4,0.0001,2]
[423244259,1779982229000,-197.47646254,0.00012694,2]
[423244261,1779982231000,-163.53,0.00012694,2]
[423244263,1779982231000,-177.0,0.00012704,2]
[423244262,1779982231000,-1200.0,0.00012704,2]
[423244265,1779982231000,-1767.49756157,0.00012705,2]
[423244266,1779982231000,-2000.0,0.00012705,2]
[423244264,1779982231000,-150.0,0.00012704,2]
[423244269,1779982231000,-28828.51133355,0.00012705,2]
[423244268,1779982231000,-272.12352312,0.00012705,2]
[423244267,1779982231000,-354.00232647,0.00012705,2]
[423244271,1779982231000,-471.84604647,0.00012705,2]
[423244273,1779982231000,-5642.48777975,0.00012705,2]
[423244272,1779982231000,-393.653476,0.00012705,2]
[423244274,1779982231000,-500.0,0.00012722,2]
[423244275,1779982231000,-365.08340601,0.00012722,2]
[423244276,1779982231000,-608.48693256,0.00012722,2]
[423244277,1779982231000,-500.0,0.00012723,2]
[423244278,1779982231000,-500.0,0.00012723,2]
[423244270,1779982231000,-17885.64795307,0.00012705,2]
[423244294,1779982232000,-364.76943695,0.00012723,2]
[423244304,1779982232000,-500.0,0.00012723,2]
[423244291,1779982232000,-500.0,0.00012723,2]
[423244309,1779982232000,-500.0,0.00012723,2]
[423244307,1779982232000,-500.0,0.00012723,2]
[423244296,1779982232000,-500.0,0.00012723,2]
[423244311,1779982232000,-500.0,0.00012723,2]
[423244298,1779982232000,-500.0,0.00012723,2]
[423244289,1779982232000,-500.0,0.00012723,2]
[423244319,1779982232000,-500.0,0.00012723,2]
[423244302,1779982232000,-500.0,0.00012723,2]
[423244287,1779982232000,-500.0,0.00012723,2]
[423244284,1779982232000,-500.0,0.00012723,2]
[423244285,1779982232000,-439.83370108,0.00012723,2]
[423244283,1779982232000,-500.0,0.00012723,2]
[423244280,1779982232000,-544.26266471,0.00012723,2]
[423244282,1779982232000,-500.0,0.00012723,2]
[423244279,1779982232000,-500.0,0.00012723,2]
[423244281,1779982232000,-500.0,0.00012723,2]
[423244313,1779982232000,-500.0,0.00012723,2]
[423244300,1779982232000,-500.0,0.00012723,2]
[423244328,1779982232000,-500.0,0.00012723,2]
[423244345,1779982232000,-403.22077995,0.00012723,2]
[423244321,1779982232000,-500.0,0.00012723,2]
[423244350,1779982232000,-295.4284492,0.00012723,2]
[423244348,1779982232000,-250.00000001,0.00012723,2]
[423244347,1779982232000,-500.0,0.00012723,2]
[423244346,1779982232000,-96.77922005,0.00012723,2]
[423244349,1779982232000,-500.0,0.00012723,2]
[423244341,1779982232000,-500.0,0.00012723,2]
[423244338,1779982232000,-500.0,0.00012723,2]
[423244326,1779982232000,-208.94199259,0.00012723,2]
[423244342,1779982232000,-500.0,0.00012723,2]
[423244340,1779982232000,-500.0,0.00012723,2]
[423244343,1779982232000,-500.0,0.00012723,2]
[423244339,1779982232000,-500.0,0.00012723,2]
[423244337,1779982232000,-500.0,0.00012723,2]
[423244336,1779982232000,-500.0,0.00012723,2]
[423244335,1779982232000,-500.0,0.00012723,2]
[423244333,1779982232000,-500.0,0.00012723,2]
[423244324,1779982232000,-500.0,0.00012723,2]
[423244316,1779982232000,-500.0,0.00012723,2]
[423244331,1779982232000,-500.0,0.00012723,2]
[423244344,1779982232000,-500.0,0.00012723,2]
[423244352,1779982237000,-204.5715508,0.00012723,2]
[423244354,1779982237000,-500.0,0.00012723,2]
[423244353,1779982237000,-500.0,0.00012723,2]
[423244355,1779982237000,-6214.67,0.00012726,2]
[423244361,1779982237000,-920.75352976,0.00012876,2]
[423244356,1779982237000,-209.03147293,0.00012762,2]
[423244358,1779982237000,-859.0,0.00012814,2]
[423244360,1779982237000,-200.0,0.0001286,2]
[423244357,1779982237000,-500.0,0.00012814,2]
[423244364,1779982237000,-100.69152976,0.0001299,2]
[423244362,1779982237000,-1850.48647024,0.00012876,2]
[423244363,1779982237000,-294.73,0.00012924,2]
[423244359,1779982237000,-211.86,0.00012843,2]
[423244398,1779982238000,-150.0,0.00013556,2]
[423244399,1779982238000,-150.0,0.00013563,2]
[423244400,1779982238000,-150.0,0.00013588,2]
[423244403,1779982238000,-150.0,0.00013613,2]
[423244395,1779982238000,-155.45,0.00013501,2]
[423244396,1779982238000,-150.0,0.00013513,2]
[423244402,1779982238000,-150.0,0.00013613,2]
[423244394,1779982238000,-150.0,0.00013488,2]
[423244393,1779982238000,-150.0,0.00013488,2]
[423244397,1779982238000,-150.0,0.00013538,2]
[423244401,1779982238000,-150.0,0.00013588,2]
[423244407,1779982238000,-150.0,0.00013654,2]
[423244405,1779982238000,-150.0,0.00013624,2]
[423244406,1779982238000,-150.0,0.00013638,2]
[423244408,1779982238000,-150.0,0.00013663,2]
[423244411,1779982238000,-150.0,0.00013692,2]
[423244409,1779982238000,-150.0,0.00013687,2]
[423244410,1779982238000,-150.0,0.00013687,2]
[423244392,1779982238000,-150.0,0.00013488,2]
[423244412,1779982238000,-200.0,0.00013699,2]
[423244413,1779982238000,-166.66,0.00013699,2]
[423244414,1779982238000,-500.0,0.00013699,2]
[423244404,1779982238000,-150.0,0.00013613,2]
[423244391,1779982238000,-150.0,0.00013488,2]
[423244415,1779982238000,-595.75939729,0.00013699,2]
[423244389,1779982238000,-150.0,0.00013488,2]
[423244365,1779982238000,-117.35847024,0.0001299,2]
[423244366,1779982238000,-942.51209319,0.00013,5]
[423244367,1779982238000,-403.21165206,0.00013,5]
[423244370,1779982238000,-500.0,0.00013088,2]
[423244369,1779982238000,-2992.45528161,0.0001305,2]
[423244371,1779982238000,-150.0,0.00013129,2]
[423244374,1779982238000,-2000.0,0.00013178,2]
[423244373,1779982238000,-211.86,0.00013165,2]
[423244372,1779982238000,-1868.0,0.00013134,2]
[423244376,1779982238000,-200.0,0.0001324,2]
[423244375,1779982238000,-164.32,0.00013198,2]
[423244377,1779982238000,-200.0,0.0001324,2]
[423244379,1779982238000,-200.0,0.0001324,2]
[423244380,1779982238000,-200.0,0.0001324,2]
[423244381,1779982238000,-309.77835106,0.0001324,2]
[423244378,1779982238000,-200.0,0.0001324,2]
[423244382,1779982238000,-283.31440298,0.00013362,2]
[423244383,1779982238000,-671.96,0.00013391,2]
[423244384,1779982238000,-211.86,0.00013486,2]
[423244388,1779982238000,-150.0,0.00013488,2]
[423244386,1779982238000,-150.0,0.00013488,2]
[423244385,1779982238000,-215.50460005,0.00013487,2]
[423244387,1779982238000,-150.0,0.00013488,2]
[423244390,1779982238000,-150.0,0.00013488,2]
[423244416,1779982238000,-150.0,0.00013712,2]
[423244368,1779982238000,-20175.91872842,0.00013,5]
[423244418,1779982238000,-150.0,0.00013737,2]
[423244454,1779982238000,-250.0,0.00013963,2]
[423244452,1779982238000,-257.50891594,0.00013963,2]
[423244456,1779982238000,-166.66,0.00013973,2]
[423244458,1779982238000,-150.0,0.00013987,2]
[423244459,1779982238000,-150.0,0.00013987,2]
[423244455,1779982238000,-150.0,0.00013965,2]
[423244460,1779982238000,-150.0,0.00013987,2]
[423244462,1779982238000,-995.72818816,0.0001399,2]
[423244457,1779982238000,-150.0,0.00013987,2]
[423244461,1779982238000,-150.0,0.00013987,2]
[423244463,1779982238000,-250.0,0.00014,2]
[423244464,1779982238000,-265.72520712,0.00014,30]
[423244466,1779982238000,-150.0,0.00014033,2]
[423244467,1779982238000,-150.0,0.00014037,2]
[423244468,1779982238000,-150.0,0.00014062,2]
[423244473,1779982238000,-150.0,0.00014112,2]
[423244469,1779982238000,-150.0,0.00014087,2]
[423244474,1779982238000,-150.0,0.00014112,2]
[423244472,1779982238000,-166.66,0.0001411,2]
[423244470,1779982238000,-150.0,0.00014087,2]
[423244471,1779982238000,-150.0,0.00014101,2]
[423244475,1779982238000,-150.0,0.00014112,2]
[423244417,1779982238000,-150.0,0.00013737,2]
[423244453,1779982238000,-300.0,0.00013963,2]
[423244450,1779982238000,-300.0,0.00013963,2]
[423244465,1779982238000,-150.0,0.00014012,2]
[423244449,1779982238000,-300.0,0.00013963,2]
[423244451,1779982238000,-300.0,0.00013963,2]
[423244420,1779982238000,-150.0,0.00013737,2]
[423244422,1779982238000,-150.0,0.0001376,2]
[423244424,1779982238000,-150.0,0.00013762,2]
[423244428,1779982238000,-150.0,0.00013787,2]